Workbook

Sheet Sines
B1: Exploring Lemniscate Curves
B3: This graphing utility produces the graph
B4: of the lemniscate curve in polar form
C5: r2 = a2*sin(2Q)
B6: on the interval from Q = 0 to Q = 2p.
A9: What is the value of a (from 1 to 5)?
C10: 8 | F10: =1+C10/4 -> 3.00
A15: Click each item below for suggestions and investigations
B16: Item 1
B17: Item 2
B18: Item 3 | I18: Graph of the lemniscate r2 = | M18: =TEXT(a^2,"0.00") & " sin(2Q)" -> 9.00 sin(2Q)
B19: Item 4
I21: Now trace along the lemniscate:
I22: Q = | J22: =K22*Calcs!B12 -> 6.28 | K22: 201
A23: To access/download all the DIGMath Apps for Calculus | I23: r = | J23: =LOOKUP(J22,Calcs!C3:C204,Calcs!D3:D204) -> 0.00
A24: Click this link: | C24: DIGMath for Calculus
A26: Created by: Sheldon P. Gordon
A27: Farmingdale State College
A28: Development of this module was supported by the
A29: NSF's Division of Undergraduate Education
A30: under grants DUE-0310123 and DUE-0442160.

Sheet Cosines
B1: Exploring Lemniscate Curves
B3: This graphing utility produces the graph
B4: of the lemniscate curve in polar form
C5: r2 = a2*cos(2Q)
B6: on the interval from Q = 0 to Q = 2p.
A9: What is the value of a (from 1 to 5)?
C10: 6 | F10: =1+C10/4 -> 2.50
A15: Click each item below for suggestions and investigations
B16: Item 1
B17: Item 2
B18: Item 3 | I18: Graph of the lemniscate r2 = | M18: =TEXT(aa^2,"0.00") & " cos(2Q)" -> 6.25 cos(2Q)
B19: Item 4
I21: Now trace along the lemniscate:
I22: Q = | J22: =K22*Calcs!B12 -> 3.31 | K22: 106
A23: To access/download all the DIGMath Apps for Calculus | I23: r = | J23: =LOOKUP(J22,Calcs!K3:K204,Calcs!L3:L204) -> 2.45
A24: Click this link: | C24: DIGMath for Calculus
A26: Created by: Sheldon P. Gordon
A27: Farmingdale State College
A28: Development of this module was supported by the
A29: NSF's Division of Undergraduate Education
A30: under grants DUE-0310123 and DUE-0442160.

Sheet Calcs
C1: Q | D1: r = f(Q) | E1: x | F1: y | H1: Tracing point -- sine | K1: Q | L1: r = f(Q) | M1: x | N1: y
C3: 0 | D3: =IF(SIN(2*C3)>=0,a*SQRT(SIN(2*C3)),0) -> 0 | E3: =D3*COS(C3) -> 0 | F3: =D3*SIN(C3) -> 0 | H3: 0 | I3: 0 | K3: 0 | L3: =IF(COS(2*K3)>=0,aa*SQRT(COS(2*K3)),0) -> 2.5 | M3: =L3*COS(K3) -> 2.5 | N3: =L3*SIN(K3) -> 0
C4: =C3+Calcs!B$12 -> 0.03125962839 | D4: 0.7498712111 | E4: =D4*COS(C4) -> 0.7495048672 | F4: =D4*SIN(C4) -> 0.02343687802 | H4: =LOOKUP(Sines!$J$22,Calcs!C3:C204,E3:E204) -> 0 | I4: =LOOKUP(Sines!J22,Calcs!C3:C204,F3:F204) -> 0 | K4: =K3+Calcs!B$12 -> 0.03125962839 | L4: 2.497556691 | M4: =L4*COS(K4) -> 2.496336528 | N4: =L4*SIN(K4) -> 0.07805997969
C5: =C4+Calcs!B$12 -> 0.06251925679 | D5: 1.059441606 | E5: 1.057371784 | F5: 0.06619236163 | K5: =K4+Calcs!B$12 -> 0.06251925679 | L5: 2.490221959 | M5: 2.485356832 | N5: 0.1555854249
C6: =C5+Calcs!B$12 -> 0.09377888518 | D6: 1.295430619 | E6: 1.289738474 | F6: 0.1213060528 | K6: =K5+Calcs!B$12 -> 0.09377888518 | L6: 2.477981213 | M6: 2.467092919 | N6: 0.2320418518
C7: =C6+Calcs!B$12 -> 0.1250385136 | D7: 1.492416604 | E7: 1.480765106 | F7: 0.1861236719 | H7: Start line: | K7: =K6+Calcs!B$12 -> 0.1250385136 | L7: 2.460809524 | M7: 2.441597651 | N7: 0.3068948062
C8: =C7+Calcs!B$12 -> 0.156298142 | D8: 1.663661986 | E8: 1.643382431 | F8: 0.2589698639 | H8: 0 | I8: 0 | K8: =K7+Calcs!B$12 -> 0.156298142 | L8: 2.43867067 | M8: 2.408943985 | N8: 0.3796096905
C9: =C8+Calcs!B$12 -> 0.1875577704 | D9: 1.815880047 | E9: 1.784034128 | F9: 0.3385890921 | H9: =1.2*D3*COS(C3) -> 0 | I9: =1.2*D3*SIN(C3) -> 0 | K9: =K8+Calcs!B$12 -> 0.1875577704 | L9: 2.411515727 | M9: 2.369223873 | N9: 0.4496513534
C10: =C9+Calcs!B$12 -> 0.2188173988 | D10: 1.952993905 | E10: 1.906424464 | F10: 0.4239468808 | K10: =K9+Calcs!B$12 -> 0.2188173988 | L10: 2.379281095 | M10: 2.32254677 | N10: 0.5164833317
C11: =C10+Calcs!B$12 -> 0.2500770272 | D11: 2.0775097 | E11: 2.012885358 | F11: 0.5141391736 | K11: =K10+Calcs!B$12 -> 0.2500770272 | L11: 2.341885851 | M11: 2.269037655 | N11: 0.5795666108
A12: delta Q = | B12: =2*PI()/201 -> 0.03125962839 | C12: =C11+Calcs!B$12 -> 0.2813366555 | D12: 2.191128354 | E12: 2.104984554 | F12: 0.6083448792 | K12: =K11+Calcs!B$12 -> 0.2813366555 | L12: 2.299228212 | M12: 2.208834486 | N12: 0.6383577239
C13: =C12+Calcs!B$12 -> 0.3125962839 | D13: 2.29505574 | E13: 2.183833534 | F13: 0.7057987988 | K13: =K12+Calcs!B$12 -> 0.3125962839 | L13: 2.251180848 | M13: 2.142084892 | N13: 0.6923059475
C14: =C13+Calcs!B$12 -> 0.3438559123 | D14: 2.390175086 | E14: 2.250258451 | F14: 0.8057753071 | K14: =K13+Calcs!B$12 -> 0.3438559123 | L14: 2.197584616 | M14: 2.068941888 | N14: 0.7408492497
C15: =C14+Calcs!B$12 -> 0.3751155407 | D15: 2.477149651 | E15: 2.304901784 | F15: 0.9075781837 | K15: =K14+Calcs!B$12 -> 0.3751155407 | L15: 2.138240128 | M15: 1.989558234 | N15: 0.7834084997
C16: =C15+Calcs!B$12 -> 0.4063751691 | D16: 2.556487254 | E16: 2.348286129 | F16: 1.010534184 | K16: =K15+Calcs!B$12 -> 0.4063751691 | L16: 2.072896212 | M16: 1.904078893 | N16: 0.8193792003
C17: =C16+Calcs!B$12 -> 0.4376347975 | D17: 2.628582613 | E17: 2.380855958 | F17: 1.113988987 | K17: =K16+Calcs!B$12 -> 0.4376347975 | L17: 2.001233852 | M17: 1.812630699 | N17: 0.8481196141
C18: =C17+Calcs!B$12 -> 0.4688944259 | D18: 2.693746122 | E18: 2.403005907 | F18: 1.217304718 | H18: Tracing point -- cosine | K18: =K17+Calcs!B$12 -> 0.4688944259 | L18: 1.922843293 | M18: 1.715307821 | N18: 0.8689334877
C19: =C18+Calcs!B$12 -> 0.5001540543 | D19: 2.752223964 | E19: 2.415100456 | F19: 1.319858529 | K19: =K18+Calcs!B$12 -> 0.5001540543 | L19: 1.837190477 | M19: 1.612150616 | N19: 0.8810444031
C20: =C19+Calcs!B$12 -> 0.5314136827 | D20: 2.804212532 | E20: 2.417487914 | F20: 1.42104191 | H20: 0 | I20: 0 | K20: =K19+Calcs!B$12 -> 0.5314136827 | L20: 1.743566143 | M20: 1.50311363 | N20: 0.883556626
C21: =C20+Calcs!B$12 -> 0.5626733111 | D21: 2.849868937 | E21: 2.410510511 | F21: 1.520260514 | H21: =LOOKUP(Cosines!$J$22,Calcs!K3:K204,M3:M204) -> -2.426160301 | I21: =LOOKUP(Cosines!J22,Calcs!K3:K204,N3:N204) -> -0.3435529342 | K21: =K20+Calcs!B$12 -> 0.5626733111 | L21: 1.641005303 | M21: 1.388014895 | N21: 0.8753930871
C22: =C21+Calcs!B$12 -> 0.5939329395 | D22: 2.889318809 | E22: 2.394511764 | F22: 1.616934319 | K22: =K21+Calcs!B$12 -> 0.5939329395 | L22: 1.528153044 | M22: 1.266450912 | N22: 0.8551922667
C23: =C22+Calcs!B$12 -> 0.6251925679 | D23: 2.922662129 | E23: 2.369841854 | F23: 1.710498028 | K23: =K22+Calcs!B$12 -> 0.6251925679 | L23: 1.403025417 | M23: 1.137643767 | N23: 0.8211254339
C24: =C23+Calcs!B$12 -> 0.6564521963 | D24: 2.94997762 | E24: 2.336861568 | F24: 1.800401614 | H24: Start line: | K24: =K23+Calcs!B$12 -> 0.6564521963 | L24: 1.262543981 | M24: 1.000139963 | N24: 0.7705435475
C25: =C24+Calcs!B$12 -> 0.6877118247 | D25: 2.971326051 | E25: 2.295945135 | F25: 1.886110929 | H25: 0 | I25: 0 | K25: =K24+Calcs!B$12 -> 0.6877118247 | L25: 1.101510712 | M25: 0.8511378818 | N25: 0.6992068044
C26: =C25+Calcs!B$12 -> 0.7189714531 | D26: 2.986752687 | E26: 2.247482233 | F26: 1.967108341 | H26: =1.2*L3*COS(K3) -> 3 | I26: =1.2*D3*SIN(K3) -> 0 | K26: =K25+Calcs!B$12 -> 0.7189714531 | L26: 0.9098865116 | M26: 0.6846746228 | N26: 0.5992613161
C27: =C26+Calcs!B$12 -> 0.7502310815 | D27: 2.996289063 | E27: 2.191879339 | F27: 2.042893319 | K27: =K26+Calcs!B$12 -> 0.7502310815 | L27: 0.6627414133 | M27: 0.484816111 | N27: 0.4518622793
C28: =C27+Calcs!B$12 -> 0.7814907098 | D28: 2.999954195 | E28: 2.129560574 | F28: 2.112982948 | K28: =K27+Calcs!B$12 -> 0.7814907098 | L28: 0.2210037832 | M28: 0.1568827098 | N28: 0.1556614518
C29: =C28+Calcs!B$12 -> 0.8127503382 | D29: 2.997755295 | E29: 2.060968136 | F29: 2.176912298 | K29: =K28+Calcs!B$12 -> 0.8127503382 | L29: 0 | M29: 0 | N29: 0
C30: =C29+Calcs!B$12 -> 0.8440099666 | D30: 2.989688043 | E30: 1.986562419 | F30: 2.234234623 | K30: =K29+Calcs!B$12 -> 0.8440099666 | L30: 0 | M30: 0 | N30: 0
C31: =C30+Calcs!B$12 -> 0.875269595 | D31: 2.975736423 | E31: 1.906821871 | F31: 2.284521308 | K31: =K30+Calcs!B$12 -> 0.875269595 | L31: 0 | M31: 0 | N31: 0
C32: =C31+Calcs!B$12 -> 0.9065292234 | D32: 2.955872122 | E32: 1.822242662 | F32: 2.327361528 | K32: =K31+Calcs!B$12 -> 0.9065292234 | L32: 0 | M32: 0 | N32: 0
C33: =C32+Calcs!B$12 -> 0.9377888518 | D33: 2.930053451 | E33: 1.733338203 | F33: 2.36236151 | K33: =K32+Calcs!B$12 -> 0.9377888518 | L33: 0 | M33: 0 | N33: 0
C34: =C33+Calcs!B$12 -> 0.9690484802 | D34: 2.898223718 | E34: 1.640638569 | F34: 2.389143321 | K34: =K33+Calcs!B$12 -> 0.9690484802 | L34: 0 | M34: 0 | N34: 0
C35: =C34+Calcs!B$12 -> 1.000308109 | D35: 2.860308962 | E35: 1.544689878 | F35: 2.407343045 | K35: =K34+Calcs!B$12 -> 1.000308109 | L35: 0 | M35: 0 | N35: 0
C36: =C35+Calcs!B$12 -> 1.031567737 | D36: 2.816214879 | E36: 1.446053664 | F36: 2.416608169 | K36: =K35+Calcs!B$12 -> 1.031567737 | L36: 0 | M36: 0 | N36: 0
C37: =C36+Calcs!B$12 -> 1.062827365 | D37: 2.765822735 | E37: 1.345306311 | F37: 2.416593953 | K37: =K36+Calcs!B$12 -> 1.062827365 | L37: 0 | M37: 0 | N37: 0
C38: =C37+Calcs!B$12 -> 1.094086994 | D38: 2.708983933 | E38: 1.243038613 | F38: 2.406958445 | K38: =K37+Calcs!B$12 -> 1.094086994 | L38: 0 | M38: 0 | N38: 0
C39: =C38+Calcs!B$12 -> 1.125346622 | D39: 2.645512765 | E39: 1.139855537 | F39: 2.38735568 | K39: =K38+Calcs!B$12 -> 1.125346622 | L39: 0 | M39: 0 | N39: 0
C40: =C39+Calcs!B$12 -> 1.156606251 | D40: 2.575176667 | E40: 1.036376306 | F40: 2.357426355 | K40: =K39+Calcs!B$12 -> 1.156606251 | L40: 0 | M40: 0 | N40: 0
C41: =C40+Calcs!B$12 -> 1.187865879 | D41: 2.497682924 | E41: 0.9332349376 | F41: 2.316784958 | K41: =K40+Calcs!B$12 -> 1.187865879 | L41: 0 | M41: 0 | N41: 0
C42: =C41+Calcs!B$12 -> 1.219125507 | D42: 2.412660193 | E42: 0.8310814576 | F42: 2.265001726 | K42: =K41+Calcs!B$12 -> 1.219125507 | L42: 0 | M42: 0 | N42: 0
C43: =C42+Calcs!B$12 -> 1.250385136 | D43: 2.319632259 | E43: 0.730584072 | F43: 2.201576874 | K43: =K42+Calcs!B$12 -> 1.250385136 | L43: 0 | M43: 0 | N43: 0
C44: =C43+Calcs!B$12 -> 1.281644764 | D44: 2.217979708 | E44: 0.6324327652 | F44: 2.125902816 | K44: =K43+Calcs!B$12 -> 1.281644764 | L44: 0 | M44: 0 | N44: 0
C45: =C44+Calcs!B$12 -> 1.312904393 | D45: 2.106882065 | E45: 0.5373450348 | F45: 2.037206997 | K45: =K44+Calcs!B$12 -> 1.312904393 | L45: 0 | M45: 0 | N45: 0
C46: =C45+Calcs!B$12 -> 1.344164021 | D46: 1.985226786 | E46: 0.4460749524 | F46: 1.934461819 | K46: =K45+Calcs!B$12 -> 1.344164021 | L46: 0 | M46: 0 | N46: 0
C47: =C46+Calcs!B$12 -> 1.375423649 | D47: 1.851458683 | E47: 0.3594276286 | F47: 1.816235402 | K47: =K46+Calcs!B$12 -> 1.375423649 | L47: 0 | M47: 0 | N47: 0
C48: =C47+Calcs!B$12 -> 1.406683278 | D48: 1.703314122 | E48: 0.2782829676 | F48: 1.680427799 | K48: =K47+Calcs!B$12 -> 1.406683278 | L48: 0 | M48: 0 | N48: 0
C49: =C48+Calcs!B$12 -> 1.437942906 | D49: 1.537310095 | E49: 0.2036366368 | F49: 1.523763253 | K49: =K48+Calcs!B$12 -> 1.437942906 | L49: 0 | M49: 0 | N49: 0
C50: =C49+Calcs!B$12 -> 1.469202535 | D50: 1.34763914 | E50: 0.1366763745 | F50: 1.340690427 | K50: =K49+Calcs!B$12 -> 1.469202535 | L50: 0 | M50: 0 | N50: 0
C51: =C50+Calcs!B$12 -> 1.500462163 | D51: 1.123318232 | E51: 0.07894252432 | F51: 1.120540909 | K51: =K50+Calcs!B$12 -> 1.500462163 | L51: 0 | M51: 0 | N51: 0
C52: =C51+Calcs!B$12 -> 1.531721791 | D52: 0.8382278571 | E52: 0.03274503004 | F52: 0.8375880272 | K52: =K51+Calcs!B$12 -> 1.531721791 | L52: 0 | M52: 0 | N52: 0
C53: =C52+Calcs!B$12 -> 1.56298142 | D53: 0.3750501307 | E53: 0.002930952095 | F53: 0.375038678 | K53: =K52+Calcs!B$12 -> 1.56298142 | L53: 0 | M53: 0 | N53: 0
C54: =C53+Calcs!B$12 -> 1.594241048 | D54: 0 | E54: 0 | F54: 0 | K54: =K53+Calcs!B$12 -> 1.594241048 | L54: 0 | M54: 0 | N54: 0
C55: =C54+Calcs!B$12 -> 1.625500676 | D55: 0 | E55: 0 | F55: 0 | K55: =K54+Calcs!B$12 -> 1.625500676 | L55: 0 | M55: 0 | N55: 0
C56: =C55+Calcs!B$12 -> 1.656760305 | D56: 0 | E56: 0 | F56: 0 | K56: =K55+Calcs!B$12 -> 1.656760305 | L56: 0 | M56: 0 | N56: 0
C57: =C56+Calcs!B$12 -> 1.688019933 | D57: 0 | E57: 0 | F57: 0 | K57: =K56+Calcs!B$12 -> 1.688019933 | L57: 0 | M57: 0 | N57: 0
C58: =C57+Calcs!B$12 -> 1.719279562 | D58: 0 | E58: 0 | F58: 0 | K58: =K57+Calcs!B$12 -> 1.719279562 | L58: 0 | M58: 0 | N58: 0
C59: =C58+Calcs!B$12 -> 1.75053919 | D59: 0 | E59: 0 | F59: 0 | K59: =K58+Calcs!B$12 -> 1.75053919 | L59: 0 | M59: 0 | N59: 0
C60: =C59+Calcs!B$12 -> 1.781798818 | D60: 0 | E60: 0 | F60: 0 | K60: =K59+Calcs!B$12 -> 1.781798818 | L60: 0 | M60: 0 | N60: 0
C61: =C60+Calcs!B$12 -> 1.813058447 | D61: 0 | E61: 0 | F61: 0 | K61: =K60+Calcs!B$12 -> 1.813058447 | L61: 0 | M61: 0 | N61: 0
C62: =C61+Calcs!B$12 -> 1.844318075 | D62: 0 | E62: 0 | F62: 0 | K62: =K61+Calcs!B$12 -> 1.844318075 | L62: 0 | M62: 0 | N62: 0
C63: =C62+Calcs!B$12 -> 1.875577704 | D63: 0 | E63: 0 | F63: 0 | K63: =K62+Calcs!B$12 -> 1.875577704 | L63: 0 | M63: 0 | N63: 0
C64: =C63+Calcs!B$12 -> 1.906837332 | D64: 0 | E64: 0 | F64: 0 | K64: =K63+Calcs!B$12 -> 1.906837332 | L64: 0 | M64: 0 | N64: 0
C65: =C64+Calcs!B$12 -> 1.93809696 | D65: 0 | E65: 0 | F65: 0 | K65: =K64+Calcs!B$12 -> 1.93809696 | L65: 0 | M65: 0 | N65: 0
C66: =C65+Calcs!B$12 -> 1.969356589 | D66: 0 | E66: 0 | F66: 0 | K66: =K65+Calcs!B$12 -> 1.969356589 | L66: 0 | M66: 0 | N66: 0
C67: =C66+Calcs!B$12 -> 2.000616217 | D67: =IF(SIN(2*C67)>=0,a*SQRT(SIN(2*C67)),0) -> 0 | E67: 0 | F67: 0 | K67: =K66+Calcs!B$12 -> 2.000616217 | L67: =IF(COS(2*K67)>=0,aa*SQRT(COS(2*K67)),0) -> 0 | M67: 0 | N67: 0
C68: =C67+Calcs!B$12 -> 2.031875846 | D68: 0 | E68: =D68*COS(C68) -> 0 | F68: =D68*SIN(C68) -> 0 | K68: =K67+Calcs!B$12 -> 2.031875846 | L68: 0 | M68: =L68*COS(K68) -> 0 | N68: =L68*SIN(K68) -> 0
C69: =C68+Calcs!B$12 -> 2.063135474 | D69: 0 | E69: 0 | F69: 0 | K69: =K68+Calcs!B$12 -> 2.063135474 | L69: 0 | M69: 0 | N69: 0
C70: =C69+Calcs!B$12 -> 2.094395102 | D70: 0 | E70: 0 | F70: 0 | K70: =K69+Calcs!B$12 -> 2.094395102 | L70: 0 | M70: 0 | N70: 0
C71: =C70+Calcs!B$12 -> 2.125654731 | D71: 0 | E71: 0 | F71: 0 | K71: =K70+Calcs!B$12 -> 2.125654731 | L71: 0 | M71: 0 | N71: 0
C72: =C71+Calcs!B$12 -> 2.156914359 | D72: 0 | E72: 0 | F72: 0 | K72: =K71+Calcs!B$12 -> 2.156914359 | L72: 0 | M72: 0 | N72: 0
C73: =C72+Calcs!B$12 -> 2.188173988 | D73: 0 | E73: 0 | F73: 0 | K73: =K72+Calcs!B$12 -> 2.188173988 | L73: 0 | M73: 0 | N73: 0
C74: =C73+Calcs!B$12 -> 2.219433616 | D74: 0 | E74: 0 | F74: 0 | K74: =K73+Calcs!B$12 -> 2.219433616 | L74: 0 | M74: 0 | N74: 0
C75: =C74+Calcs!B$12 -> 2.250693244 | D75: 0 | E75: 0 | F75: 0 | K75: =K74+Calcs!B$12 -> 2.250693244 | L75: 0 | M75: 0 | N75: 0
C76: =C75+Calcs!B$12 -> 2.281952873 | D76: 0 | E76: 0 | F76: 0 | K76: =K75+Calcs!B$12 -> 2.281952873 | L76: 0 | M76: 0 | N76: 0
C77: =C76+Calcs!B$12 -> 2.313212501 | D77: 0 | E77: 0 | F77: 0 | K77: =K76+Calcs!B$12 -> 2.313212501 | L77: 0 | M77: 0 | N77: 0
C78: =C77+Calcs!B$12 -> 2.34447213 | D78: 0 | E78: 0 | F78: 0 | K78: =K77+Calcs!B$12 -> 2.34447213 | L78: 0 | M78: 0 | N78: 0
C79: =C78+Calcs!B$12 -> 2.375731758 | D79: 0 | E79: 0 | F79: 0 | K79: =K78+Calcs!B$12 -> 2.375731758 | L79: 0.4941191213 | M79: -0.3561540896 | N79: 0.3425025116
C80: =C79+Calcs!B$12 -> 2.406991386 | D80: 0 | E80: 0 | F80: 0 | K80: =K79+Calcs!B$12 -> 2.406991386 | L80: 0.7961592144 | M80: -0.5908282239 | N80: 0.5336586029
C81: =C80+Calcs!B$12 -> 2.438251015 | D81: 0 | E81: 0 | F81: 0 | K81: =K80+Calcs!B$12 -> 2.438251015 | L81: 1.01049914 | M81: -0.7706927164 | N81: 0.6535604397
C82: =C81+Calcs!B$12 -> 2.469510643 | D82: 0 | E82: 0 | F82: 0 | K82: =K81+Calcs!B$12 -> 2.469510643 | L82: 1.185055975 | M82: -0.9273383785 | N82: 0.7378354805
C83: =C82+Calcs!B$12 -> 2.500770272 | D83: 0 | E83: 0 | F83: 0 | K83: =K82+Calcs!B$12 -> 2.500770272 | L83: 1.334960468 | M83: -1.070110137 | N83: 0.7981126154
C84: =C83+Calcs!B$12 -> 2.5320299 | D84: 0 | E84: 0 | F84: 0 | K84: =K83+Calcs!B$12 -> 2.5320299 | L84: 1.467282459 | M84: -1.203022575 | N84: 0.8400324386
C85: =C84+Calcs!B$12 -> 2.563289528 | D85: 0 | E85: 0 | F85: 0 | K85: =K84+Calcs!B$12 -> 2.563289528 | L85: 1.585970964 | M85: -1.328078403 | N85: 0.8668977178
C86: =C85+Calcs!B$12 -> 2.594549157 | D86: 0 | E86: 0 | F86: 0 | K86: =K85+Calcs!B$12 -> 2.594549157 | L86: 1.693476225 | M86: -1.446340669 | N86: 0.8808861405
C87: =C86+Calcs!B$12 -> 2.625808785 | D87: 0 | E87: 0 | F87: 0 | K87: =K86+Calcs!B$12 -> 2.625808785 | L87: 1.791427841 | M87: -1.558374495 | N87: 0.8835624732
C88: =C87+Calcs!B$12 -> 2.657068413 | D88: 0 | E88: 0 | F88: 0 | K88: =K87+Calcs!B$12 -> 2.657068413 | L88: 1.880964131 | M88: -1.664458863 | N88: 0.8761294183
C89: =C88+Calcs!B$12 -> 2.688328042 | D89: 0 | E89: 0 | F89: 0 | K89: =K88+Calcs!B$12 -> 2.688328042 | L89: 1.962909573 | M89: -1.764699504 | N89: 0.8595636395
C90: =C89+Calcs!B$12 -> 2.71958767 | D90: 0 | E90: 0 | F90: 0 | K90: =K89+Calcs!B$12 -> 2.71958767 | L90: 2.037877992 | M90: -1.859094044 | N90: 0.8346951809
C91: =C90+Calcs!B$12 -> 2.750847299 | D91: 0 | E91: 0 | F91: 0 | K91: =K90+Calcs!B$12 -> 2.750847299 | L91: 2.106336219 | M91: -1.947572027 | N91: 0.802256484
C92: =C91+Calcs!B$12 -> 2.782106927 | D92: 0 | E92: 0 | F92: 0 | K92: =K91+Calcs!B$12 -> 2.782106927 | L92: 2.168645227 | M92: -2.030020795 | N92: 0.7629139498
C93: =C92+Calcs!B$12 -> 2.813366555 | D93: 0 | E93: 0 | F93: 0 | K93: =K92+Calcs!B$12 -> 2.813366555 | L93: 2.225087742 | M93: -2.106302935 | N93: 0.7172889261
C94: =C93+Calcs!B$12 -> 2.844626184 | D94: 0 | E94: 0 | F94: 0 | K94: =K93+Calcs!B$12 -> 2.844626184 | L94: 2.27588736 | M94: -2.176268497 | N94: 0.665972001
C95: =C94+Calcs!B$12 -> 2.875885812 | D95: 0 | E95: 0 | F95: 0 | K95: =K94+Calcs!B$12 -> 2.875885812 | L95: 2.321222125 | M95: -2.239763783 | N95: 0.6095328979
C96: =C95+Calcs!B$12 -> 2.907145441 | D96: 0 | E96: 0 | F96: 0 | K96: =K95+Calcs!B$12 -> 2.907145441 | L96: 2.361234373 | M96: -2.296637861 | N96: 0.5485273932
C97: =C96+Calcs!B$12 -> 2.938405069 | D97: 0 | E97: 0 | F97: 0 | K97: =K96+Calcs!B$12 -> 2.938405069 | L97: 2.396037987 | M97: -2.346747471 | N97: 0.4835021632
C98: =C97+Calcs!B$12 -> 2.969664697 | D98: 0 | E98: 0 | F98: 0 | K98: =K97+Calcs!B$12 -> 2.969664697 | L98: 2.425723814 | M98: -2.389960784 | N98: 0.414998161
C99: =C98+Calcs!B$12 -> 3.000924326 | D99: 0 | E99: 0 | F99: 0 | K99: =K98+Calcs!B$12 -> 3.000924326 | L99: 2.450363733 | M99: -2.426160301 | N99: 0.3435529342
C100: =C99+Calcs!B$12 -> 3.032183954 | D100: 0 | E100: 0 | F100: 0 | K100: =K99+Calcs!B$12 -> 3.032183954 | L100: 2.470013721 | M100: -2.455245105 | N100: 0.2697021687
C101: =C100+Calcs!B$12 -> 3.063443583 | D101: 0 | E101: 0 | F101: 0 | K101: =K100+Calcs!B$12 -> 3.063443583 | L101: 2.484716145 | M101: -2.47713258 | N101: 0.1939806686
C102: =C101+Calcs!B$12 -> 3.094703211 | D102: 0 | E102: 0 | F102: 0 | K102: =K101+Calcs!B$12 -> 3.094703211 | L102: 2.494501431 | M102: -2.491759703 | N102: 0.1169229258
C103: =C102+Calcs!B$12 -> 3.125962839 | D103: 0 | E103: 0 | F103: 0 | K103: =K102+Calcs!B$12 -> 3.125962839 | L103: 2.499389247 | M103: -2.499083964 | N103: 0.03906339902
C104: =C103+Calcs!B$12 -> 3.157222468 | D104: 0.530368588 | E104: -0.5303038071 | F104: -0.008289224979 | K104: =K103+Calcs!B$12 -> 3.157222468 | L104: 2.499389247 | M104: -2.499083964 | N104: -0.03906339902
C105: =C104+Calcs!B$12 -> 3.188482096 | D105: 0.9180269091 | E105: =D105*COS(C105) -> -0.9170178979 | F105: =D105*SIN(C105) -> -0.04302999824 | K105: =K104+Calcs!B$12 -> 3.188482096 | L105: 2.494501431 | M105: -2.491759703 | N105: -0.1169229258
C106: =C105+Calcs!B$12 -> 3.219741725 | D106: 1.1836228 | E106: -1.180010283 | F106: -0.0924048981 | K106: =K105+Calcs!B$12 -> 3.219741725 | L106: 2.484716145 | M106: -2.47713258 | N106: -0.1939806686
C107: =C106+Calcs!B$12 -> 3.251001353 | D107: 1.397740448 | E107: -1.389383128 | F107: -0.152620055 | K107: =K106+Calcs!B$12 -> 3.251001353 | L107: 2.470013721 | M107: -2.455245105 | N107: -0.2697021687
C108: =C107+Calcs!B$12 -> 3.282260981 | D108: 1.580746663 | E108: -1.565132861 | F108: -0.221628384 | K108: =K107+Calcs!B$12 -> 3.282260981 | L108: 2.450363733 | M108: -2.426160301 | N108: -0.3435529342
C109: =C108+Calcs!B$12 -> 3.31352061 | D109: 1.741860514 | E109: -1.716179845 | F109: -0.2980013248 | K109: =K108+Calcs!B$12 -> 3.31352061 | L109: 2.425723814 | M109: -2.389960784 | N109: -0.414998161
C110: =C109+Calcs!B$12 -> 3.344780238 | D110: 1.886144421 | E110: -1.84734327 | F110: -0.3806095365 | K110: =K109+Calcs!B$12 -> 3.344780238 | L110: 2.396037987 | M110: -2.346747471 | N110: -0.4835021632
C111: =C110+Calcs!B$12 -> 3.376039867 | D111: 2.016705934 | E111: -1.961534719 | F111: -0.4684915913 | K111: =K110+Calcs!B$12 -> 3.376039867 | L111: 2.361234373 | M111: -2.296637861 | N111: -0.5485273932
C112: =C111+Calcs!B$12 -> 3.407299495 | D112: 2.135596671 | E112: -2.060652458 | F112: -0.5607892554 | K112: =K111+Calcs!B$12 -> 3.407299495 | L112: 2.321222125 | M112: -2.239763783 | N112: -0.6095328979
C113: =C112+Calcs!B$12 -> 3.438559123 | D113: 2.244242135 | E113: -2.146008428 | F113: -0.6567119495 | K113: =K112+Calcs!B$12 -> 3.438559123 | L113: 2.27588736 | M113: -2.176268497 | N113: -0.665972001
C114: =C113+Calcs!B$12 -> 3.469818752 | D114: 2.343670701 | E114: -2.218555424 | F114: -0.7555158428 | K114: =K113+Calcs!B$12 -> 3.469818752 | L114: 2.225087742 | M114: -2.106302935 | N114: -0.7172889261
C115: =C114+Calcs!B$12 -> 3.50107838 | D115: 2.434645663 | E115: -2.279017914 | F115: -0.856491009 | K115: =K114+Calcs!B$12 -> 3.50107838 | L115: 2.168645227 | M115: -2.030020795 | N115: -0.7629139498
C116: =C115+Calcs!B$12 -> 3.532338009 | D116: 2.517746141 | E116: -2.327972102 | F116: -0.9589533466 | K116: =K115+Calcs!B$12 -> 3.532338009 | L116: 2.106336219 | M116: -1.947572027 | N116: -0.802256484
C117: =C116+Calcs!B$12 -> 3.563597637 | D117: 2.593419107 | E117: -2.365897289 | F117: -1.062239467 | K117: =K116+Calcs!B$12 -> 3.563597637 | L117: 2.037877992 | M117: -1.859094044 | N117: -0.8346951809
C118: =C117+Calcs!B$12 -> 3.594857265 | D118: 2.662014149 | E118: -2.393210117 | F118: -1.165703506 | K118: =K117+Calcs!B$12 -> 3.594857265 | L118: 1.962909573 | M118: -1.764699504 | N118: -0.8595636395
C119: =C118+Calcs!B$12 -> 3.626116894 | D119: 2.723807449 | E119: -2.410288093 | F119: -1.268715227 | K119: =K118+Calcs!B$12 -> 3.626116894 | L119: 1.880964131 | M119: -1.664458863 | N119: -0.8761294183
C120: =C119+Calcs!B$12 -> 3.657376522 | D120: 2.77901877 | E120: -2.417486137 | F120: -1.370659002 | K120: =K119+Calcs!B$12 -> 3.657376522 | L120: 1.791427841 | M120: -1.558374495 | N120: -0.8835624732
C121: =C120+Calcs!B$12 -> 3.68863615 | D121: 2.827823741 | E121: -2.415148452 | F121: -1.4709334 | K121: =K120+Calcs!B$12 -> 3.68863615 | L121: 1.693476225 | M121: -1.446340669 | N121: -0.8808861405
C122: =C121+Calcs!B$12 -> 3.719895779 | D122: 2.870362897 | E122: -2.403617128 | F122: -1.568951199 | K122: =K121+Calcs!B$12 -> 3.719895779 | L122: 1.585970964 | M122: -1.328078403 | N122: -0.8668977178
C123: =C122+Calcs!B$12 -> 3.751155407 | D123: 2.906748413 | E123: -2.383238442 | F123: -1.664139677 | K123: =K122+Calcs!B$12 -> 3.751155407 | L123: 1.467282459 | M123: -1.203022575 | N123: -0.8400324386
C124: =C123+Calcs!B$12 -> 3.782415036 | D124: 2.937069166 | E124: -2.354367461 | F124: -1.7559411 | K124: =K123+Calcs!B$12 -> 3.782415036 | L124: 1.334960468 | M124: -1.070110137 | N124: -0.7981126154
C125: =C124+Calcs!B$12 -> 3.813674664 | D125: 2.961394549 | E125: -2.317371396 | F125: -1.843813302 | K125: =K124+Calcs!B$12 -> 3.813674664 | L125: 1.185055975 | M125: -0.9273383785 | N125: -0.7378354805
C126: =C125+Calcs!B$12 -> 3.844934292 | D126: 2.979777317 | E126: -2.272631994 | F126: -1.927230313 | K126: =K125+Calcs!B$12 -> 3.844934292 | L126: 1.01049914 | M126: -0.7706927164 | N126: -0.6535604397
C127: =C126+Calcs!B$12 -> 3.876193921 | D127: 2.992255686 | E127: -2.220547198 | F127: -2.005682984 | K127: =K126+Calcs!B$12 -> 3.876193921 | L127: 0.7961592144 | M127: -0.5908282239 | N127: -0.5336586029
C128: =C127+Calcs!B$12 -> 3.907453549 | D128: 2.998854813 | E128: -2.161532229 | F128: -2.078679535 | K128: =K127+Calcs!B$12 -> 3.907453549 | L128: 0.4941191213 | M128: -0.3561540896 | N128: -0.3425025116
C129: =C128+Calcs!B$12 -> 3.938713178 | D129: 2.999587749 | E129: -2.096020215 | F129: -2.145746006 | K129: =K128+Calcs!B$12 -> 3.938713178 | L129: 0 | M129: 0 | N129: 0
C130: =C129+Calcs!B$12 -> 3.969972806 | D130: 2.994455935 | E130: -2.024462454 | F130: -2.20642655 | K130: =K129+Calcs!B$12 -> 3.969972806 | L130: 0 | M130: 0 | N130: 0
C131: =C130+Calcs!B$12 -> 4.001232434 | D131: =IF(SIN(2*C131)>=0,a*SQRT(SIN(2*C131)),0) -> 2.98344925 | E131: -1.947328399 | F131: -2.260283508 | K131: =K130+Calcs!B$12 -> 4.001232434 | L131: =IF(COS(2*K131)>=0,aa*SQRT(COS(2*K131)),0) -> 0 | M131: 0 | N131: 0
C132: =C131+Calcs!B$12 -> 4.032492063 | D132: 2.966545634 | E132: -1.865105409 | F132: -2.306897225 | K132: =K131+Calcs!B$12 -> 4.032492063 | L132: 0 | M132: =L132*COS(K132) -> 0 | N132: =L132*SIN(K132) -> 0
C133: =C132+Calcs!B$12 -> 4.063751691 | D133: 2.943710252 | E133: -1.778298342 | F133: -2.345865523 | K133: =K132+Calcs!B$12 -> 4.063751691 | L133: 0 | M133: 0 | N133: 0
C134: =C133+Calcs!B$12 -> 4.09501132 | D134: 2.914894154 | E134: -1.687429019 | F134: -2.376802734 | K134: =K133+Calcs!B$12 -> 4.09501132 | L134: 0 | M134: 0 | N134: 0
C135: =C134+Calcs!B$12 -> 4.126270948 | D135: 2.880032343 | E135: -1.593035614 | F135: -2.399338207 | K135: =K134+Calcs!B$12 -> 4.126270948 | L135: 0 | M135: 0 | N135: 0
C136: =C135+Calcs!B$12 -> 4.157530576 | D136: 2.839041128 | E136: -1.495672029 | F136: -2.41311411 | K136: =K135+Calcs!B$12 -> 4.157530576 | L136: 0 | M136: 0 | N136: 0
C137: =C136+Calcs!B$12 -> 4.188790205 | D137: 2.791814577 | E137: -1.395907289 | F137: -2.417782347 | K137: =K136+Calcs!B$12 -> 4.188790205 | L137: 0 | M137: 0 | N137: 0
C138: =C137+Calcs!B$12 -> 4.220049833 | D138: 2.738219804 | E138: -1.294325026 | F138: -2.413000294 | K138: =K137+Calcs!B$12 -> 4.220049833 | L138: 0 | M138: 0 | N138: 0
C139: =C138+Calcs!B$12 -> 4.251309462 | D139: 2.678090697 | E139: -1.191523134 | F139: -2.398424983 | K139: =K138+Calcs!B$12 -> 4.251309462 | L139: 0 | M139: 0 | N139: 0
C140: =C139+Calcs!B$12 -> 4.28256909 | D140: 2.611219531 | E140: -1.088113672 | F140: -2.373705137 | K140: =K139+Calcs!B$12 -> 4.28256909 | L140: 0 | M140: 0 | N140: 0
C141: =C140+Calcs!B$12 -> 4.313828718 | D141: 2.537345606 | E141: -0.9847231572 | F141: -2.338470233 | K141: =K140+Calcs!B$12 -> 4.313828718 | L141: 0 | M141: 0 | N141: 0
C142: =C141+Calcs!B$12 -> 4.345088347 | D142: 2.456139611 | E142: -0.8819934086 | F142: -2.292315296 | K142: =K141+Calcs!B$12 -> 4.345088347 | L142: 0 | M142: 0 | N142: 0
C143: =C142+Calcs!B$12 -> 4.376347975 | D143: 2.367181675 | E143: -0.7805831939 | F143: -2.234779399 | K143: =K142+Calcs!B$12 -> 4.376347975 | L143: 0 | M143: 0 | N143: 0
C144: =C143+Calcs!B$12 -> 4.407607604 | D144: 2.269929769 | E144: -0.6811710462 | F144: -2.165314564 | K144: =K143+Calcs!B$12 -> 4.407607604 | L144: 0 | M144: 0 | N144: 0
C145: =C144+Calcs!B$12 -> 4.438867232 | D145: 2.163672829 | E145: -0.584459817 | F145: -2.083239505 | K145: =K144+Calcs!B$12 -> 4.438867232 | L145: 0 | M145: 0 | N145: 0
C146: =C145+Calcs!B$12 -> 4.47012686 | D146: 2.047458601 | E146: -0.4911838842 | F146: -1.987668261 | K146: =K145+Calcs!B$12 -> 4.47012686 | L146: 0 | M146: 0 | N146: 0
C147: =C146+Calcs!B$12 -> 4.501386489 | D147: 1.919977407 | E147: -0.4021205726 | F147: -1.87739508 | K147: =K146+Calcs!B$12 -> 4.501386489 | L147: 0 | M147: 0 | N147: 0
C148: =C147+Calcs!B$12 -> 4.532646117 | D148: 1.779363908 | E148: -0.3181086033 | F148: -1.750697814 | K148: =K147+Calcs!B$12 -> 4.532646117 | L148: 0 | M148: 0 | N148: 0
C149: =C148+Calcs!B$12 -> 4.563905746 | D149: 1.622833104 | E149: -0.2400790532 | F149: -1.604976427 | K149: =K148+Calcs!B$12 -> 4.563905746 | L149: 0 | M149: 0 | N149: 0
C150: =C149+Calcs!B$12 -> 4.595165374 | D150: 1.44594198 | E150: -0.1691106098 | F150: -1.436018736 | K150: =K149+Calcs!B$12 -> 4.595165374 | L150: 0 | M150: 0 | N150: 0
C151: =C150+Calcs!B$12 -> 4.626425002 | D151: 1.240862514 | E151: -0.1065381487 | F151: -1.236280471 | K151: =K150+Calcs!B$12 -> 4.626425002 | L151: 0 | M151: 0 | N151: 0
C152: =C151+Calcs!B$12 -> 4.657684631 | D152: 0.991319824 | E152: -0.05420246279 | F152: -0.9898368989 | K152: =K151+Calcs!B$12 -> 4.657684631 | L152: 0 | M152: 0 | N152: 0
C153: =C152+Calcs!B$12 -> 4.688944259 | D153: 0.6495000864 | E153: -0.01522595358 | F153: -0.6493215941 | K153: =K152+Calcs!B$12 -> 4.688944259 | L153: 0 | M153: 0 | N153: 0
C154: =C153+Calcs!B$12 -> 4.720203887 | D154: 0 | E154: 0 | F154: 0 | K154: =K153+Calcs!B$12 -> 4.720203887 | L154: 0 | M154: 0 | N154: 0
C155: =C154+Calcs!B$12 -> 4.751463516 | D155: 0 | E155: 0 | F155: 0 | K155: =K154+Calcs!B$12 -> 4.751463516 | L155: 0 | M155: 0 | N155: 0
C156: =C155+Calcs!B$12 -> 4.782723144 | D156: 0 | E156: 0 | F156: 0 | K156: =K155+Calcs!B$12 -> 4.782723144 | L156: 0 | M156: 0 | N156: 0
C157: =C156+Calcs!B$12 -> 4.813982773 | D157: 0 | E157: 0 | F157: 0 | K157: =K156+Calcs!B$12 -> 4.813982773 | L157: 0 | M157: 0 | N157: 0
C158: =C157+Calcs!B$12 -> 4.845242401 | D158: 0 | E158: 0 | F158: 0 | K158: =K157+Calcs!B$12 -> 4.845242401 | L158: 0 | M158: 0 | N158: 0
C159: =C158+Calcs!B$12 -> 4.876502029 | D159: 0 | E159: 0 | F159: 0 | K159: =K158+Calcs!B$12 -> 4.876502029 | L159: 0 | M159: 0 | N159: 0
C160: =C159+Calcs!B$12 -> 4.907761658 | D160: 0 | E160: 0 | F160: 0 | K160: =K159+Calcs!B$12 -> 4.907761658 | L160: 0 | M160: 0 | N160: 0
C161: =C160+Calcs!B$12 -> 4.939021286 | D161: 0 | E161: 0 | F161: 0 | K161: =K160+Calcs!B$12 -> 4.939021286 | L161: 0 | M161: 0 | N161: 0
C162: =C161+Calcs!B$12 -> 4.970280915 | D162: 0 | E162: 0 | F162: 0 | K162: =K161+Calcs!B$12 -> 4.970280915 | L162: 0 | M162: 0 | N162: 0
C163: =C162+Calcs!B$12 -> 5.001540543 | D163: 0 | E163: 0 | F163: 0 | K163: =K162+Calcs!B$12 -> 5.001540543 | L163: 0 | M163: 0 | N163: 0
C164: =C163+Calcs!B$12 -> 5.032800171 | D164: 0 | E164: 0 | F164: 0 | K164: =K163+Calcs!B$12 -> 5.032800171 | L164: 0 | M164: 0 | N164: 0
C165: =C164+Calcs!B$12 -> 5.0640598 | D165: 0 | E165: 0 | F165: 0 | K165: =K164+Calcs!B$12 -> 5.0640598 | L165: 0 | M165: 0 | N165: 0
C166: =C165+Calcs!B$12 -> 5.095319428 | D166: 0 | E166: 0 | F166: 0 | K166: =K165+Calcs!B$12 -> 5.095319428 | L166: 0 | M166: 0 | N166: 0
C167: =C166+Calcs!B$12 -> 5.126579057 | D167: 0 | E167: 0 | F167: 0 | K167: =K166+Calcs!B$12 -> 5.126579057 | L167: 0 | M167: 0 | N167: 0
C168: =C167+Calcs!B$12 -> 5.157838685 | D168: 0 | E168: 0 | F168: 0 | K168: =K167+Calcs!B$12 -> 5.157838685 | L168: 0 | M168: 0 | N168: 0
C169: =C168+Calcs!B$12 -> 5.189098313 | D169: 0 | E169: =D169*COS(C169) -> 0 | F169: =D169*SIN(C169) -> 0 | K169: =K168+Calcs!B$12 -> 5.189098313 | L169: 0 | M169: 0 | N169: 0
C170: =C169+Calcs!B$12 -> 5.220357942 | D170: 0 | E170: 0 | F170: 0 | K170: =K169+Calcs!B$12 -> 5.220357942 | L170: 0 | M170: 0 | N170: 0
C171: =C170+Calcs!B$12 -> 5.25161757 | D171: 0 | E171: 0 | F171: 0 | K171: =K170+Calcs!B$12 -> 5.25161757 | L171: 0 | M171: 0 | N171: 0
C172: =C171+Calcs!B$12 -> 5.282877199 | D172: 0 | E172: 0 | F172: 0 | K172: =K171+Calcs!B$12 -> 5.282877199 | L172: 0 | M172: 0 | N172: 0
C173: =C172+Calcs!B$12 -> 5.314136827 | D173: 0 | E173: 0 | F173: 0 | K173: =K172+Calcs!B$12 -> 5.314136827 | L173: 0 | M173: 0 | N173: 0
C174: =C173+Calcs!B$12 -> 5.345396455 | D174: 0 | E174: 0 | F174: 0 | K174: =K173+Calcs!B$12 -> 5.345396455 | L174: 0 | M174: 0 | N174: 0
C175: =C174+Calcs!B$12 -> 5.376656084 | D175: 0 | E175: 0 | F175: 0 | K175: =K174+Calcs!B$12 -> 5.376656084 | L175: 0 | M175: 0 | N175: 0
C176: =C175+Calcs!B$12 -> 5.407915712 | D176: 0 | E176: 0 | F176: 0 | K176: =K175+Calcs!B$12 -> 5.407915712 | L176: 0 | M176: 0 | N176: 0
C177: =C176+Calcs!B$12 -> 5.439175341 | D177: 0 | E177: 0 | F177: 0 | K177: =K176+Calcs!B$12 -> 5.439175341 | L177: 0 | M177: 0 | N177: 0
C178: =C177+Calcs!B$12 -> 5.470434969 | D178: 0 | E178: 0 | F178: 0 | K178: =K177+Calcs!B$12 -> 5.470434969 | L178: 0 | M178: 0 | N178: 0
C179: =C178+Calcs!B$12 -> 5.501694597 | D179: 0 | E179: 0 | F179: 0 | K179: =K178+Calcs!B$12 -> 5.501694597 | L179: 0.2210037832 | M179: 0.1568827098 | N179: -0.1556614518
C180: =C179+Calcs!B$12 -> 5.532954226 | D180: 0 | E180: 0 | F180: 0 | K180: =K179+Calcs!B$12 -> 5.532954226 | L180: 0.6627414133 | M180: 0.484816111 | N180: -0.4518622793
C181: =C180+Calcs!B$12 -> 5.564213854 | D181: 0 | E181: 0 | F181: 0 | K181: =K180+Calcs!B$12 -> 5.564213854 | L181: 0.9098865116 | M181: 0.6846746228 | N181: -0.5992613161
C182: =C181+Calcs!B$12 -> 5.595473483 | D182: 0 | E182: 0 | F182: 0 | K182: =K181+Calcs!B$12 -> 5.595473483 | L182: 1.101510712 | M182: 0.8511378818 | N182: -0.6992068044
C183: =C182+Calcs!B$12 -> 5.626733111 | D183: 0 | E183: 0 | F183: 0 | K183: =K182+Calcs!B$12 -> 5.626733111 | L183: 1.262543981 | M183: 1.000139963 | N183: -0.7705435475
C184: =C183+Calcs!B$12 -> 5.657992739 | D184: 0 | E184: 0 | F184: 0 | K184: =K183+Calcs!B$12 -> 5.657992739 | L184: 1.403025417 | M184: 1.137643767 | N184: -0.8211254339
C185: =C184+Calcs!B$12 -> 5.689252368 | D185: 0 | E185: 0 | F185: 0 | K185: =K184+Calcs!B$12 -> 5.689252368 | L185: 1.528153044 | M185: 1.266450912 | N185: -0.8551922667
C186: =C185+Calcs!B$12 -> 5.720511996 | D186: 0 | E186: 0 | F186: 0 | K186: =K185+Calcs!B$12 -> 5.720511996 | L186: 1.641005303 | M186: 1.388014895 | N186: -0.8753930871
C187: =C186+Calcs!B$12 -> 5.751771624 | D187: 0 | E187: 0 | F187: 0 | K187: =K186+Calcs!B$12 -> 5.751771624 | L187: 1.743566143 | M187: 1.50311363 | N187: -0.883556626
C188: =C187+Calcs!B$12 -> 5.783031253 | D188: 0 | E188: 0 | F188: 0 | K188: =K187+Calcs!B$12 -> 5.783031253 | L188: 1.837190477 | M188: 1.612150616 | N188: -0.8810444031
C189: =C188+Calcs!B$12 -> 5.814290881 | D189: 0 | E189: 0 | F189: 0 | K189: =K188+Calcs!B$12 -> 5.814290881 | L189: 1.922843293 | M189: 1.715307821 | N189: -0.8689334877
C190: =C189+Calcs!B$12 -> 5.84555051 | D190: 0 | E190: 0 | F190: 0 | K190: =K189+Calcs!B$12 -> 5.84555051 | L190: 2.001233852 | M190: 1.812630699 | N190: -0.8481196141
C191: =C190+Calcs!B$12 -> 5.876810138 | D191: 0 | E191: 0 | F191: 0 | K191: =K190+Calcs!B$12 -> 5.876810138 | L191: 2.072896212 | M191: 1.904078893 | N191: -0.8193792003
C192: =C191+Calcs!B$12 -> 5.908069766 | D192: 0 | E192: 0 | F192: 0 | K192: =K191+Calcs!B$12 -> 5.908069766 | L192: 2.138240128 | M192: 1.989558234 | N192: -0.7834084997
C193: =C192+Calcs!B$12 -> 5.939329395 | D193: 0 | E193: 0 | F193: 0 | K193: =K192+Calcs!B$12 -> 5.939329395 | L193: 2.197584616 | M193: 2.068941888 | N193: -0.7408492497
C194: =C193+Calcs!B$12 -> 5.970589023 | D194: 0 | E194: 0 | F194: 0 | K194: =K193+Calcs!B$12 -> 5.970589023 | L194: 2.251180848 | M194: 2.142084892 | N194: -0.6923059475
C195: =C194+Calcs!B$12 -> 6.001848652 | D195: =IF(SIN(2*C195)>=0,a*SQRT(SIN(2*C195)),0) -> 0 | E195: 0 | F195: 0 | K195: =K194+Calcs!B$12 -> 6.001848652 | L195: =IF(COS(2*K195)>=0,aa*SQRT(COS(2*K195)),0) -> 2.299228212 | M195: 2.208834486 | N195: -0.6383577239
C196: =C195+Calcs!B$12 -> 6.03310828 | D196: 0 | E196: 0 | F196: 0 | K196: =K195+Calcs!B$12 -> 6.03310828 | L196: 2.341885851 | M196: =L196*COS(K196) -> 2.269037655 | N196: =L196*SIN(K196) -> -0.5795666108
C197: =C196+Calcs!B$12 -> 6.064367908 | D197: 0 | E197: 0 | F197: 0 | K197: =K196+Calcs!B$12 -> 6.064367908 | L197: 2.379281095 | M197: 2.32254677 | N197: -0.5164833317
C198: =C197+Calcs!B$12 -> 6.095627537 | D198: 0 | E198: 0 | F198: 0 | K198: =K197+Calcs!B$12 -> 6.095627537 | L198: 2.411515727 | M198: 2.369223873 | N198: -0.4496513534
C199: =C198+Calcs!B$12 -> 6.126887165 | D199: 0 | E199: 0 | F199: 0 | K199: =K198+Calcs!B$12 -> 6.126887165 | L199: 2.43867067 | M199: 2.408943985 | N199: -0.3796096905
C200: =C199+Calcs!B$12 -> 6.158146794 | D200: 0 | E200: 0 | F200: 0 | K200: =K199+Calcs!B$12 -> 6.158146794 | L200: 2.460809524 | M200: 2.441597651 | N200: -0.3068948062
C201: =C200+Calcs!B$12 -> 6.189406422 | D201: 0 | E201: 0 | F201: 0 | K201: =K200+Calcs!B$12 -> 6.189406422 | L201: 2.477981213 | M201: 2.467092919 | N201: -0.2320418518
... 3 more rows

Sheet Defining Function
A1: Defining a Function in Excel
A3: Computers have very specific rules you must follow when defining a function. If you don't, the program will either not work at all or will work incorrectly.
A5: 1. The Variable used should be the one named in the instruction, usually x, though sometimes y, t, Q (for an angle theta),
A6: or even x and y (for a function of two variables).
A8: 2. Order of Operations: There five arithmetic operations, addition (+), subtraction (-), multiplication (*), division (/), and exponentiation or power (^). When computers see any of these operation symbols, they perform the indicated steps in a very particular order. First, the power is done. Second, products and quotients of adjacent terms is done. Third, and last, sums and differences of adjacent terms are done. So, in 10*x^3 + 5*x – 7, say with x = 2, the first pass only calculates 2^3 and ignores the multiplications and the sums and differences to calculate 2^3 = 8. The second pass looks at 10*8 + 5*2 – 7 and only does the multiplications, so it produces 80 + 10 - 7. The third pass looks at the +’s and –‘s to produce 80 + 10 – 7 = 83.
A10: 3. Parentheses If you need an operation involving more than two adjacent terms, as in Ö4^3 + 6^2, the computer would take the square root of 4 to produce 2^3 + 6^2; it would then cube the 2 and square the 6 to produce 8 + 36; and finally it would add the 8 and the 36 to get 44. If you actually wanted the square root of the entire expression, you would need to use parentheses, as in Ö(4^3 + 6^2) to tell the computer to do all the operations inside the parentheses before taking the square root. Therefore, it would calculate (4^3 + 6^2) = 64 + 36 = 100 and then take the square root of Ö100 = 10.
A12: 4. Built-In Functions Computer programs have built-in functions for most common algebraic functions. In Excel, the square root function is denoted by SQRT(…), so SQRT(100) = 10. Alternatively, you could enter it as 100^.5 or 100^(1/2); notice that parentheses are needed to have the ½ done first. The common trig functions are SIN (…), COS (…), and TAN (…), where the arguments are automatically interpreted as being in radians, not degrees. The logarithm to the base 10 is represented by LOG (…) and the logarithm with the base e, known as the natural logarithm, is LN (…). The corresponding exponential function with base e is EXP (x). If x is the variable, then each of these would be SQRT (x), SIN (x), COS (x), TAN (x), LOG (x) (for log with base 10 ), LN (x) (for log with base e ), and EXP (x).
